bitfinex-derivatives/quotes_SOLF0:USTF0_20240927
["timestamp","ask_amount","ask_price","bid_price","bid_amount"]
[1727423890519,3.1718,157.6,157.57,10.71]
[1727423890922,3.172,157.59,157.55,13.8827]
[1727423891119,10.71,157.61,157.55,13.8827]
[1727423891419,3.1722,157.58,157.54,13.8828]
[1727423892219,3.1722,157.58,157.55,3.1727]
[1727423894820,10.71,157.56,157.49,1.2852]
[1727423895123,10.71,157.56,157.51,10.71]
[1727423895421,10.71,157.56,157.52,13.8832]
[1727423895422,3.1728,157.55,157.52,13.8832]
[1727423896819,3.1726,157.56,157.53,3.1732]
[1727423897020,10.71,157.57,157.49,2.6274]
[1727423897220,10.71,157.57,157.51,10.71]
[1727423898122,3.1729,157.55,157.51,13.8834]
[1727423898324,10.71,157.57,157.51,13.8834]
[1727423898524,10.71,157.56,157.51,13.8834]
[1727423898720,3.173,157.54,157.51,13.8834]
[1727423899426,13.883,157.54,157.49,2.6274]
[1727423899627,13.883,157.54,157.49,13.3374]
[1727423900422,3.173,157.54,157.51,3.1734]
[1727423901027,13.8828,157.55,157.52,3.1733]
[1727423902830,3.1728,157.55,157.52,3.1733]
[1727423907837,3.1728,157.55,157.52,13.8833]
[1727423908037,6.3418,157.65,157.53,10.71]
[1727423908234,10.71,157.58,157.53,10.71]
[1727423908835,3.1725,157.57,157.54,3.1728]
[1727423912833,3.1725,157.57,157.54,153.1728]
[1727423913040,72.5676,157.67,157.55,10.71]
[1727423913242,72.5676,157.67,157.58,10.71]
[1727423913432,10.71,157.63,157.58,10.71]
[1727423915639,3.1717,157.61,157.58,10.71]
[1727423915833,4.0076,157.67,157.58,10.71]
[1727423916039,3.1713,157.63,157.59,13.8818]
[1727423916451,10.71,157.65,157.59,13.8818]
[1727423916745,3.1715,157.62,157.59,13.8818]
[1727423917440,4.0076,157.67,157.59,13.8818]
[1727423917441,4.0076,157.67,157.59,10.71]
[1727423917643,10.71,157.65,157.59,10.71]
[1727423918742,3.1711,157.64,157.6,3.1717]
[1727423919250,10.71,157.65,157.6,3.1717]
[1727423920846,3.1711,157.63,157.6,3.1717]
[1727423922945,3.1714,157.62,157.59,13.8819]
[1727423923347,3.1707,157.66,157.63,3.1711]
[1727423923546,10.71,157.67,157.61,10.71]
[1727423923946,3.1709,157.64,157.56,5.70402406]
[1727423924252,3.1709,157.64,157.61,10.71]
[1727423924548,3.1713,157.63,157.61,10.71]
[1727423924748,3.1713,157.63,157.6,10.71]
[1727423925753,3.1713,157.63,157.6,13.8817]
[1727423932461,3.1714,157.62,157.6,3.1717]
[1727423932657,10.71,157.65,157.6,3.1717]
[1727423933554,3.1713,157.63,157.6,3.1717]
[1727423937355,10.71,157.64,157.59,10.71]
[1727423937954,3.9475,157.68,157.59,13.8818]
[1727423938156,10.71,157.65,157.59,13.8818]
[1727423938752,3.1714,157.62,157.59,13.8818]
[1727423940856,3.1714,157.62,157.59,3.1718]
[1727423941056,3.1714,157.62,157.59,13.8818]
[1727423941263,3.1714,157.62,157.6,3.1717]
[1727423942059,3.1714,157.62,157.59,13.8819]
[1727423942860,10.71,157.62,157.56,10.71]
[1727423943456,10.71,157.62,157.57,3.1723]
[1727423943658,10.71,157.62,157.56,10.71]
[1727423944159,3.1721,157.59,157.56,13.8824]
[1727423944563,3.1722,157.58,157.55,17.8653]
[1727423944959,10.71,157.6,157.55,17.8653]
[1727423945363,10.71,157.6,157.55,16.5326]
[1727423945559,3.1724,157.57,157.55,13.3599]
[1727423945759,6.3412,157.66,157.55,2.6499]
[1727423945962,3.1725,157.57,157.55,2.6499]
[1727423946264,3.1725,157.57,157.55,1.3476]
[1727423946466,3.1725,157.57,157.54,214.71057075]
[1727423946467,3.1725,157.57,157.54,217.88347075]
[1727423946659,10.71,157.58,157.54,214.71057075]
[1727423947261,3.1728,157.55,157.54,204.00057075]
[1727423947467,10.71,157.57,157.54,204.00057075]
[1727423947859,3.1726,157.56,157.54,204.00057075]
[1727423948263,3.1726,157.56,157.54,150.0]
[1727423948666,10.71,157.59,157.54,150.0]
[1727423948872,10.71,157.57,157.54,150.0]
[1727423949068,6.3412,157.66,157.54,150.0]
[1727423949370,10.71,157.57,157.54,150.0]
[1727423949866,3.1727,157.56,157.54,150.0]
[1727423952572,3.1728,157.55,157.54,150.0]
[1727423953776,3.1726,157.56,157.54,150.0]
[1727423954070,10.71,157.58,157.54,150.0]
[1727423954468,3.1726,157.56,157.54,153.1728]
[1727423954870,3.1726,157.56,157.54,150.0]
[1727423956577,3.1728,157.55,157.54,150.0]
[1727423960884,13.8828,157.55,157.54,150.0]
[1727423963681,3.1728,157.55,157.54,150.0]
[1727423968683,13.8828,157.55,157.54,150.0]
[1727423969381,3.1728,157.55,157.54,28.20362272]
[1727423969586,3.1728,157.55,157.54,24.05062272]
[1727423969780,13.8828,157.55,157.54,24.05062272]
[1727423972485,3.1728,157.55,157.54,24.05062272]
[1727423972684,3.1738,157.5,157.49,1.2745]
[1727423974587,93.39907722,157.56,157.49,1.2745]
[1727423974790,10.71,157.52,157.49,1.2745]
[1727423975697,13.8836,157.52,157.49,4.4484]
[1727423976099,3.1736,157.52,157.49,4.4484]
[1727423976295,3.173,157.54,157.5,13.8836]
[1727423976495,3.173,157.54,157.5,16.4672]
[1727423976698,3.1733,157.53,157.5,16.4672]
[1727423977101,10.71,157.55,157.5,13.2936]
[1727423977301,10.71,157.54,157.5,13.2936]
[1727423977698,3.1732,157.53,157.5,13.2936]
[1727423979600,3.1732,157.53,157.5,16.4673]
[1727423980699,3.173,157.54,157.51,13.8834]
[1727423981304,3.1728,157.55,157.52,3.1733]
[1727423982201,3.173,157.54,157.51,13.8835]
[1727423983799,3.1732,157.53,157.5,5.7573]
[1727423984105,3.1732,157.53,157.5,16.4673]
[1727423992102,3.173,157.54,157.51,3.1735]
[1727423992804,3.1733,157.53,157.5,2.5836]
[1727423993010,10.71,157.55,157.5,5.7573]
[1727423993308,10.71,157.55,157.5,16.4673]
[1727423993705,10.71,157.55,157.51,13.8835]
[1727423994706,3.1731,157.54,157.51,13.8835]
[1727423995112,3.19679262,157.6,157.51,13.8835]
[1727423995113,10.71,157.57,157.52,3.1732]
[1727423995302,3.1729,157.55,157.53,10.71]
[1727423997808,3.173,157.54,157.53,10.71]
[1727423998805,3.173,157.54,157.51,3.1735]
[1727424000612,3.23159723,157.6,157.5,2.5836]
[1727424000813,6.342,157.64,157.5,2.5836]
[1727424003213,3.1731,157.54,157.51,3.1734]
[1727424004415,3.1732,157.53,157.51,3.1734]
[1727424004621,3.1732,157.53,157.5,5.7572]
[1727424004907,3.11565125,157.59,157.5,2.5836]
[1727424005113,6.3433,157.61,157.5,2.5836]
[1727424005309,9.44085915,157.61,157.5,2.5836]
[1727424005514,3.1732,157.53,157.5,2.5836]
[1727424006505,3.1731,157.54,157.51,3.1734]
[1727424006709,3.09755915,157.61,157.5,2.5836]
[1727424006905,25.3909,157.67,157.5,2.5836]
[1727424007710,25.3909,157.67,157.49,1.2745]
[1727424007711,6.3432,157.61,157.47,10.49661628]
[1727424007907,9.48011741,157.61,157.44,1.2789]
[1727424008118,9.48011741,157.61,157.45,5.73506694]
[1727424008314,9.48011741,157.61,157.47,3.1743]
[1727424008612,3.13691741,157.61,157.48,5.73506694]
[1727424008808,3.9599,157.62,157.49,7.01240381]
[1727424009207,3.9599,157.62,157.49,1.2789]
[1727424009715,3.1731,157.54,157.5,8.9040449]
[1727424010016,3.1731,157.54,157.5,3.1737]
[1727424010706,3.16080553,157.57,157.49,1.2789]
[1727424010904,2.7104,157.62,157.5,5.73118867]
[1727424011105,2.7104,157.62,157.49,1.2789]
[1727424011414,2.7104,157.62,157.5,5.73316156]
[1727424011612,2.7104,157.62,157.49,1.2789]
[1727424012219,6.3433,157.61,157.45,10.50562665]
[1727424012415,3.1737,157.51,157.46,19.4163282]
[1727424012717,3.1737,157.51,157.47,5.73630155]
[1727424012918,3.1737,157.51,157.48,5.73630155]
[1727424013113,3.1738,157.5,157.49,5.73799123]
[1727424014819,3.1736,157.51,157.49,5.73799123]
[1727424015114,3.1736,157.51,157.46,10.51274338]
[1727424015418,3.1736,157.51,157.47,5.73915962]
[1727424015620,3.1736,157.51,157.48,5.73915962]
[1727424015920,9.47224353,157.61,157.49,5.73867056]
[1727424016109,9.47224353,157.61,157.5,5.73867056]
[1727424016315,3.12894353,157.61,157.51,5.73789405]
[1727424016514,2.7104,157.62,157.52,5.73789405]
[1727424016718,3.10215596,157.61,157.53,10.28269405]
[1727424016918,3.10215596,157.61,157.54,5.73789405]
[1727424017113,1.3435,157.62,157.53,4.5448]
[1727424017319,3.1727,157.56,157.54,5.73511322]
[1727424017619,3.1727,157.56,157.53,1.3718]
[1727424017809,3.1727,157.56,157.54,5.73454569]
[1727424018015,3.1727,157.56,157.53,1.3718]
[1727424018214,3.1724,157.57,157.54,5.73459632]
[1727424018411,1.3435,157.62,157.55,5.73459632]
[1727424018616,1.3435,157.62,157.53,1.3718]
[1727424018815,1.3435,157.62,157.54,5.73451906]
[1727424019017,1.3435,157.62,157.53,1.3718]
[1727424019222,1.3435,157.62,157.54,5.73596076]
[1727424019414,1.3435,157.62,157.53,1.3718]
[1727424019721,1.3435,157.62,157.54,5.73722627]
[1727424019916,3.1729,157.55,157.53,1.3718]
[1727424020116,3.1729,157.55,157.54,5.73710595]
[1727424022019,3.1726,157.56,157.54,5.73710595]
[1727424022319,1.3435,157.62,157.55,5.73647869]
[1727424022525,1.3435,157.62,157.53,1.3718]
[1727424022721,1.3435,157.62,157.54,5.73580801]
[1727424023117,1.3435,157.62,157.55,5.73580801]
[1727424023323,1.3435,157.62,157.56,5.73580801]
[1727424023517,3.1721,157.59,157.53,1.3718]
[1727424023822,3.1721,157.59,157.55,3.1726]
[1727424024124,1.3435,157.62,157.56,5.7335178]
[1727424024325,1.3435,157.62,157.53,1.3718]
[1727424024522,3.1723,157.57,157.54,8.90564142]
[1727424024723,3.1723,157.57,157.55,5.73284142]
[1727424024929,3.1723,157.57,157.56,5.73284142]
[1727424025427,3.1727,157.56,157.53,3.173]
[1727424025624,1.3435,157.62,157.54,5.73263351]
[1727424025818,1.3435,157.62,157.55,5.73263351]
[1727424026020,1.3435,157.62,157.5,10.50218848]
[1727424026218,1.3435,157.62,157.5,3.9259]
[1727424026419,1.3435,157.62,157.51,11.93451371]
[1727424026619,1.3435,157.62,157.53,3.1731]
[1727424026823,1.3435,157.62,157.54,5.7328948]
[1727424027020,1.3435,157.62,157.55,5.7328948]
[1727424027223,1.3435,157.62,157.5,3.9259]
[1727424027425,1.3435,157.62,157.51,5.73200725]
[1727424027620,1.3435,157.62,157.52,5.73200725]
[1727424027820,1.3435,157.62,157.53,5.73200725]
[1727424028127,1.3435,157.62,157.5,3.9259]
[1727424028332,1.3435,157.62,157.51,5.73398263]
[1727424028528,1.3435,157.62,157.52,5.73398263]
[1727424028822,6.3412,157.66,157.53,5.73398263]
[1727424028823,3.10814705,157.61,157.53,5.73398263]
[1727424029022,99.6810024,157.66,157.54,5.73398263]
[1727424029222,99.6810024,157.66,157.55,5.73398263]
[1727424029420,99.6810024,157.66,157.51,3.24241443]
[1727424029615,99.6810024,157.66,157.52,16.23126534]
[1727424029822,99.6810024,157.66,157.53,5.73142826]
[1727424030028,99.6810024,157.66,157.54,8.90422826]
[1727424030226,99.6810024,157.66,157.55,5.73142826]
[1727424030427,99.6810024,157.66,157.52,6.20042357]
[1727424030627,99.6810024,157.66,157.53,5.73106599]
[1727424030831,99.6810024,157.66,157.54,5.73106599]
[1727424031027,99.6810024,157.66,157.55,5.73106599]
[1727424031226,6.3416,157.65,157.53,3.1731]
[1727424031436,6.3416,157.65,157.54,5.73161555]
[1727424031630,6.3416,157.65,157.53,3.1731]
[1727424031829,6.3416,157.65,157.54,5.73209097]
[1727424032030,6.3416,157.65,157.53,3.1731]
[1727424032226,6.3416,157.65,157.54,5.73209119]
[1727424032429,3.1727,157.56,157.53,3.1731]
[1727424032730,3.1727,157.56,157.54,5.73210805]
[1727424032931,3.1727,157.56,157.53,3.1731]
[1727424033133,3.1727,157.56,157.54,5.73214482]
[1727424033332,3.1727,157.56,157.53,3.1731]
[1727424033533,3.1727,157.56,157.54,5.73194524]
[1727424033728,3.1729,157.55,157.52,3.1733]
[1727424033935,3.1729,157.55,157.53,5.73194524]
[1727424034237,3.1729,157.55,157.5,3.9259]
[1727424034429,3.1729,157.55,157.51,5.73175334]
[1727424034733,3.1729,157.55,157.52,5.73175334]
[1727424034935,3.173,157.54,157.53,5.73175334]
[1727424035530,3.1736,157.51,157.5,3.9259]
[1727424035731,6.3431,157.61,157.5,9.65995285]
[1727424035931,1.342,157.6,157.51,5.73405285]
[1727424036133,1.342,157.6,157.5,3.9259]
[1727424036434,3.1734,157.52,157.51,5.73412843]
[1727424036937,3.1734,157.52,157.48,3.1741]
[1727424037431,3.1736,157.51,157.49,5.73470912]
[1727424037635,3.1736,157.51,157.5,5.73470912]
[1727424039633,3.1739,157.5,157.46,1.2783]
[1727424039832,3.1739,157.5,157.47,8.91074132]
[1727424040034,6.344,157.59,157.48,5.73654132]
[1727424040236,6.344,157.59,157.49,5.73654132]
[1727424040436,6.344,157.59,157.5,5.73654132]
[1727424040739,6.344,157.59,157.48,3.174]
[1727424040932,3.1736,157.51,157.48,3.174]
[1727424041133,3.1736,157.51,157.49,5.74089744]
[1727424041440,3.1736,157.51,157.5,5.74089744]
[1727424042641,3.1738,157.5,157.47,3.1743]
[1727424042838,3.1738,157.5,157.48,5.73913845]
[1727424043038,3.1738,157.5,157.49,5.73913845]
[1727424044944,3.1743,157.48,157.45,5.7652]
[1727424045244,3.1743,157.48,157.46,11.94987291]
[1727424045433,3.1743,157.48,157.47,5.74002204]
[1727424046734,3.18712716,157.53,157.47,5.74002204]
[1727424046939,6.345,157.57,157.48,5.73790123]
[1727424047135,6.345,157.57,157.45,2.5906]
[1727424047339,6.345,157.57,157.46,8.91268108]
[1727424047738,3.1741,157.49,157.47,5.73818108]
[1727424047939,3.16244593,157.53,157.46,3.1745]
[1727424048141,3.1741,157.49,157.47,5.73774098]
[1727424048341,3.1741,157.49,157.46,3.1745]
[1727424048541,3.1741,157.49,157.47,5.73719707]
[1727424048742,3.09766644,157.53,157.46,3.1745]
[1727424048942,3.1741,157.49,157.46,3.1745]
[1727424049144,3.1741,157.49,157.47,5.73700819]
[1727424049339,3.1741,157.49,157.46,3.1745]
[1727424049542,3.1741,157.49,157.47,5.73590742]
[1727424049743,3.1742,157.48,157.45,5.7653]
[1727424049947,6.345,157.57,157.46,5.7360616]
[1727424050245,6.345,157.57,157.47,5.7360616]
[1727424050446,6.345,157.57,157.45,2.5906]
[1727424050646,3.1743,157.48,157.46,5.73522665]
[1727424050848,3.1743,157.48,157.45,2.5906]
[1727424050849,3.1743,157.48,157.47,5.73522665]
[1727424051640,3.1743,157.48,157.45,5.7653]
[1727424051938,3.1743,157.48,157.46,5.73530115]
[1727424052134,3.1743,157.48,157.47,5.73530115]
[1727424052344,3.1743,157.48,157.45,5.7653]
[1727424052548,3.1743,157.48,157.46,5.73370318]
[1727424052746,3.1745,157.47,157.45,2.5906]
[1727424053141,3.1745,157.47,157.46,5.7338274]
[1727424053441,6.345,157.57,157.46,5.7338274]
[1727424053638,6.345,157.57,157.47,5.73224572]
[1727424053847,6.345,157.57,157.48,5.73224572]
[1727424054046,6.345,157.57,157.47,3.1742]
[1727424054243,6.345,157.57,157.48,5.73157757]
[1727424054443,3.1739,157.5,157.47,3.1742]
[1727424054645,6.345,157.57,157.46,4.4812]
[1727424055248,6.345,157.57,157.47,5.73106726]
[1727424055442,6.345,157.57,157.46,4.4812]
[1727424056147,3.1739,157.5,157.46,4.4812]
[1727424056448,1.592,157.6,157.46,1.3067]
[1727424056837,3.1732,157.53,157.49,3.1738]
[1727424057038,3.1732,157.53,157.5,1.2782]
[1727424057540,3.1735,157.52,157.5,1.2782]
[1727424058544,3.1736,157.51,157.5,1.2782]
[1727424061238,1.592,157.6,157.46,1.3067]
[1727424061444,1.592,157.6,157.47,5.72962409]
[1727424061644,6.3446,157.58,157.48,5.72962409]
[1727424061840,6.3446,157.58,157.47,3.1743]
[1727424062045,6.3446,157.58,157.48,5.72822106]
[1727424062243,6.3446,157.58,157.46,1.3067]
[1727424062443,6.3446,157.58,157.48,3.174]
[1727424063152,3.1736,157.51,157.48,3.174]
[1727424063353,1.592,157.6,157.46,1.3067]
[1727424063552,1.592,157.6,157.47,5.72705538]
[1727424063748,1.592,157.6,157.48,5.72705538]
[1727424063947,1.592,157.6,157.49,7.09635538]
[1727424064255,3.1735,157.52,157.49,4.5432]
[1727424064558,1.592,157.6,157.49,4.5432]
[1727424065755,3.1736,157.51,157.49,4.5432]
[1727424067652,3.1735,157.52,157.49,4.5432]
[1727424068953,3.1736,157.51,157.49,1.3693]
[1727424072151,3.1739,157.5,157.46,1.3067]
[1727424072354,3.1739,157.5,157.47,5.7281753]
[1727424072653,3.1739,157.5,157.48,5.7281753]
[1727424072848,3.1739,157.5,157.46,1.3067]
[1727424073049,3.1739,157.5,157.47,5.7289012]
[1727424073249,3.1739,157.5,157.48,5.7289012]
[1727424073444,3.1739,157.5,157.47,3.1742]
[1727424073655,3.174,157.49,157.48,5.72863647]
[1727424074649,3.24693686,157.53,157.46,1.3067]
[1727424074650,3.1743,157.48,157.46,1.3067]
[1727424074855,3.1743,157.48,157.47,5.73165061]
[1727424076257,3.1748,157.45,157.44,1.3333]
[1727424076457,3.1748,157.45,157.44,7.06750271]
[1727424076954,3.1748,157.45,157.44,1.3333]
[1727424077262,3.1746,157.46,157.44,7.06795744]
[1727424077559,3.1746,157.46,157.44,1.3333]
[1727424079458,19.3,157.6,157.44,1.3333]
[1727424079760,1.2943,157.59,157.45,5.73070185]
[1727424079958,1.2943,157.59,157.44,1.3333]
[1727424079959,6.3445,157.58,157.46,5.73070185]
[1727424080157,6.3445,157.58,157.48,3.1741]
[1727424080358,3.1737,157.51,157.48,3.1741]
[1727424080555,6.3445,157.58,157.46,1.3777]
[1727424080751,6.3445,157.58,157.48,3.1741]
[1727424080951,3.1738,157.5,157.47,5.72798993]
[1727424081157,3.1738,157.5,157.46,1.3777]
[1727424081158,3.1738,157.5,157.48,5.72798993]
[1727424081357,3.1738,157.5,157.47,3.1742]
[1727424081560,3.1738,157.5,157.48,5.72868201]
[1727424081760,3.1738,157.5,157.46,1.3777]
[1727424081960,3.1738,157.5,157.47,8.9029327]
[1727424082161,6.3445,157.58,157.48,5.7287327]
[1727424082464,6.3445,157.58,157.46,1.3777]
[1727424082658,3.1738,157.5,157.47,8.90470831]
[1727424082858,6.3445,157.58,157.46,1.3777]
[1727424083059,3.1734,157.52,157.49,3.1739]
[1727424083260,3.1734,157.52,157.46,1.3777]
[1727424083461,1.2943,157.59,157.47,5.72999173]
[1727424083657,1.2943,157.59,157.46,1.3777]
[1727424083658,1.2943,157.59,157.51,3.1734]
[1727424084260,3.173,157.55,157.51,3.1734]
[1727424084465,1.2943,157.59,157.51,3.1734]
[1727424085464,3.1731,157.54,157.51,3.1734]
[1727424086368,6.3426,157.63,157.52,5.72945465]
[1727424086565,6.3426,157.63,157.49,1.2776]
[1727424086766,3.1729,157.55,157.51,3.1734]
[1727424086967,3.1729,157.55,157.52,5.72926651]
[1727424087271,3.1731,157.54,157.51,3.1734]
[1727424087470,3.1731,157.54,157.52,5.73102747]
[1727424087771,3.1731,157.54,157.51,3.1734]
[1727424089573,3.1728,157.55,157.52,3.1732]
[1727424089871,93.32148779,157.72,157.53,5.73309995]
[1727424090173,3.1714,157.62,157.59,3.1718]
[1727424092971,3.1712,157.63,157.55,4.55187701]
[1727424093171,3.1712,157.63,157.56,5.72551656]
[1727424093361,3.1712,157.63,157.59,3.1718]
[1727424093562,3.1712,157.63,157.55,4.55187701]
[1727424093765,3.1712,157.63,157.59,3.1718]
[1727424096771,3.1712,157.63,157.6,3.1717]
[1727424101665,3.171,157.64,157.61,3.1715]
[1727424102373,3.171,157.64,157.55,4.55187701]
[1727424102374,4.79878249,157.71,157.56,5.7099406]
[1727424102570,1.3745,157.71,157.57,5.70896706]
[1727424102876,3.1706,157.66,157.63,3.171]
[1727424103071,1.3745,157.71,157.63,3.171]
[1727424103766,3.1708,157.65,157.62,3.1713]
[1727424107274,3.1706,157.66,157.63,3.1711]
[1727424107676,1.3745,157.71,157.56,5.70283215]
[1727424107866,3.1709,157.65,157.62,3.1713]
[1727424108769,1.3745,157.71,157.61,3.1714]
[1727424109470,3.1709,157.65,157.62,3.1713]
[1727424109672,1.3745,157.71,157.56,5.69699996]
[1727424110379,3.1709,157.65,157.62,3.1713]
[1727424112479,1.3745,157.71,157.56,5.69699996]
[1727424112480,3.1707,157.66,157.56,5.69699996]
[1727424112687,1.3745,157.71,157.56,5.69699996]
[1727424113385,3.1704,157.67,157.55,79.41737701]
[1727424113784,1.3745,157.71,157.55,79.41737701]
[1727424114089,93.32148779,157.72,157.55,79.41737701]
[1727424114281,93.32148779,157.72,157.56,5.69077513]
[1727424114585,3.17,157.69,157.65,3.1705]
[1727424114984,93.32148779,157.72,157.65,3.1705]
[1727424115684,93.32148779,157.72,157.58,68.5]
[1727424115887,3.1704,157.67,157.58,68.5]
[1727424116277,3.1704,157.67,157.63,3.171]
[1727424117785,93.32148779,157.72,157.58,68.5]
[1727424118385,3.1711,157.64,157.6,3.1715]
[1727424119383,93.32148779,157.72,157.6,3.1715]
[1727424119384,3.1712,157.63,157.6,3.1715]
[1727424122190,93.32148779,157.72,157.55,4.55187701]
[1727424122191,6.3391,157.71,157.55,4.55187701]
[1727424122580,0.25,157.7,157.55,4.55187701]
[1727424123188,3.1708,157.65,157.62,3.1712]
[1727424123388,6.3391,157.71,157.55,4.55187701]
[1727424123795,3.1708,157.65,157.55,4.55187701]
[1727424124092,93.32148779,157.72,157.55,4.55187701]
[1727424124693,93.32148779,157.72,157.56,6.3451]
[1727424124986,93.32148779,157.72,157.57,68.5]
[1727424125190,3.1702,157.68,157.65,3.1707]
[1727424125584,93.32148779,157.72,157.57,68.5]
[1727424125987,3.1705,157.67,157.64,3.1708]
[1727424126196,93.32148779,157.72,157.64,3.1708]
[1727424126391,93.32148779,157.72,157.57,68.5]
[1727424126595,3.1706,157.66,157.63,3.171]
[1727424126897,3.1706,157.66,157.57,68.5]
[1727424127989,3.1706,157.66,157.63,3.171]
[1727424130595,3.1706,157.66,157.64,3.1709]
[1727424130997,3.1704,157.67,157.64,3.1709]
[1727424133897,3.1706,157.66,157.64,3.1709]
[1727424134099,3.1706,157.66,157.63,3.1711]
[1727424134398,93.32148779,157.72,157.56,6.3451]
[1727424134602,93.57308779,157.72,157.56,6.3451]
[1727424135093,3.1708,157.65,157.62,3.1712]
[1727424135488,93.57308779,157.72,157.55,73.05187701]
[1727424135489,3.23961086,157.67,157.55,73.05187701]
[1727424135694,1.3273,157.66,157.58,3.1721]
[1727424135902,1.3273,157.66,157.55,73.05187701]
[1727424136501,3.1714,157.62,157.59,3.1719]
[1727424136698,1.3273,157.66,157.55,73.05187701]
[1727424137401,3.1713,157.62,157.59,3.1719]
[1727424138301,1.3273,157.66,157.55,73.05187701]
[1727424138898,93.57308779,157.72,157.55,73.05187701]
[1727424139099,93.57308779,157.72,157.55,4.55187701]
[1727424139100,1.2619,157.71,157.55,4.55187701]
[1727424140196,1.2619,157.71,157.6,3.1716]
[1727424141804,3.1713,157.63,157.6,3.1716]
[1727424144306,3.1713,157.63,157.55,4.55187701]
[1727424144307,7.6012,157.71,157.55,4.55187701]
[1727424144607,1.2619,157.71,157.55,4.55187701]
[1727424144999,3.1716,157.61,157.58,3.172]
[1727424145603,6.3397,157.7,157.55,4.55187701]
[1727424145802,6.3397,157.7,157.55,10.26214936]
[1727424146202,3.1711,157.64,157.61,3.1714]
[1727424146603,6.3397,157.7,157.56,5.71204701]
[1727424146801,3.1714,157.62,157.59,3.1719]
[1727424147404,6.3399,157.69,157.56,5.71603057]
[1727424147703,6.3399,157.69,157.55,4.55187701]
[1727424147905,3.1715,157.62,157.59,3.1718]
[1727424148807,6.3399,157.69,157.58,3.1721]
[1727424148808,3.1716,157.61,157.58,3.1721]
[1727424149011,6.3399,157.69,157.55,4.55187701]
[1727424149205,3.1714,157.62,157.59,3.1719]
[1727424149399,3.1714,157.62,157.55,4.55187701]
[1727424149705,3.1714,157.62,157.56,5.72347178]
[1727424149905,3.1714,157.62,157.55,4.55187701]
[1727424150103,3.1714,157.62,157.56,5.72346191]
[1727424150307,3.1714,157.62,157.57,5.72346191]
[1727424150510,6.3399,157.69,157.55,4.55187701]
[1727424150511,3.1711,157.64,157.55,4.55187701]
[1727424150811,3.1711,157.64,157.56,5.72605942]
[1727424151007,3.1711,157.64,157.61,3.1714]
[1727424151605,3.1711,157.63,157.61,3.1714]
[1727424154608,6.3399,157.69,157.6,3.1716]
[1727424155012,6.3399,157.69,157.55,4.55187701]
[1727424155213,6.3399,157.69,157.56,11.94398729]
[1727424155519,6.3399,157.69,157.57,16.24706535]
[1727424155709,3.171,157.64,157.61,3.1714]
[1727424156812,3.171,157.64,157.55,4.55187701]
[1727424156813,3.171,157.64,157.62,3.1713]
[1727424157816,3.1712,157.63,157.61,3.1714]
[1727424158719,3.1712,157.63,157.56,6.2190294]
[1727424158924,3.1712,157.63,157.57,16.28134293]
[1727424159219,3.1712,157.63,157.58,16.28134293]
[1727424159414,3.1712,157.63,157.59,5.74935105]
[1727424159614,3.1712,157.63,157.6,5.74935105]
[1727424159818,3.1712,157.63,157.61,5.74935105]
[1727424160017,3.1712,157.63,157.55,4.55187701]
[1727424160314,3.1712,157.63,157.56,16.28314952]
[1727424160519,3.1712,157.63,157.57,16.28314952]
[1727424160718,3.1712,157.63,157.6,3.1715]
[1727424161020,3.1712,157.63,157.61,5.74996306]
[1727424161215,3.1712,157.63,157.55,4.55187701]
[1727424161415,3.1712,157.63,157.56,16.28366833]
[1727424161620,3.1712,157.63,157.57,16.28366833]
[1727424161817,1.2619,157.71,157.58,11.97009745]
[1727424162117,1.2619,157.71,157.57,4.31356715]
[1727424162118,1.2619,157.71,157.59,5.75015842]